[Event "Mitropa Online Cup Women 2021"]
[Site "Hybrid"]
[Date "2021.05.04"]
[Round "9.4"]
[White "Movsesian, Julia"]
[Black "Cvitan, Ena"]
[Result "1/2-1/2"]
[ECO "B11"]
[WhiteElo "2342"]
[BlackElo "2241"]
[Annotator "NA"]
[PlyCount "75"]
[EventDate "2021.05.04"]
[EventType "team-tourn"]
[EventCountry "NET"]
[SourceTitle "playchess.com"]
[Source "ChessBase"]
[SourceQuality "1"]
[WhiteTeam "Slovakia"]
[BlackTeam "Croatia"]
[WhiteTeamCountry "SVK"]
[BlackTeamCountry "CRO"]
[TimeControl "40/5400+30:1800+30"]

1. e4 {[%emt 0:00:00]} c6 {[%emt 0:00:30]} 2. Nc3 {[%emt 0:00:09]} d5 {[%emt 0:00:16]} 3. Nf3 {[%emt 0:00:09]} dxe4 {[%emt 0:00:18]} 4. Nxe4 {[%emt 0:00:08]} Nf6 {[%emt 0:00:02]} 5. Qe2 {[%emt 0:00:12]} Nxe4 {[%emt 0:01:53]} 6. Qxe4 {[%emt 0:00:09]} Be6 {[%emt 0:00:38]} 7. b3 {[%emt 0:05:01]} Nd7 {[%emt 0:00:18]} 8. Bc4 {[%emt 0:03:43]} Nf6 {[%emt 0:01:51]} 9. Qe2 {[%emt 0:02:10]} Bd5 {[%emt 0:02:47]} 10. O-O {[%emt 0:03:06]} e6 {[%emt 0:01:08]} 11. Ne5 {[%emt 0:05:26]} Bxc4 {[%emt 0:07:45]} 12. bxc4 {[%emt 0:04:58]} Bd6 {[%emt 0:02:39]} 13. Rb1 {[%emt 0:01:31]} Qc7 {[%emt 0:08:15]} 14. Re1 {[%emt 0:01:16]} Bxe5 {[%emt 0:04:28]} 15. Qxe5 {[%emt 0:00:13]} Qxe5 {[%emt 0:00:02]} 16. Rxe5 {[%emt 0:00:08]} O-O-O {[%emt 0:00:12]} 17. d3 {[%emt 0:01:09]} b6 {[%emt 0:07:23]} 18. Re1 {[%emt 0:09:13]} Rhe8 {[%emt 0:04:39]} 19. a4 {[%emt 0:03:45]} Re7 {[%emt 0:00:48]} 20. a5 {[%emt 0:05:52]} Rb7 {[%emt 0:00:46]} 21. axb6 {[%emt 0:07:44]} axb6 {[%emt 0:00:39]} 22. Ra1 {[%emt 0:00:39]} Rdd7 {[%emt 0:05:56]} 23. Be3 {[%emt 0:03:20]} c5 {[%emt 0:05:41]} 24. Ra8+ {[%emt 0:03:43]} Rb8 {[%emt 0:00:58]} 25. Ra6 {[%emt 0:02:18]} e5 {[%emt 0:05:51]} 26. f3 {[%emt 0:10:08]} Re7 {[%emt 0:04:06]} 27. Bg5 {[%emt 0:06:07]} Re6 {[%emt 0:08:00]} 28. Bxf6 {[%emt 0:08:04]} gxf6 {[%emt 0:01:20]} 29. Ra7 {[%emt 0:00:34]} Rb7 {[%emt 0:01:34]} 30. Ra8+ {[%emt 0:02:17]} Rb8 {[%emt 0:01:31]} 31. Ra7 {[%emt 0:04:42]} Rb7 {[%emt 0:00:08]} 32. Ra8+ {[%emt 0:00:11]} Rb8 {[%emt 0:00:06]} 33. Rea1 {[%emt 0:05:04]} f5 {[%emt 0:01:42]} 34. R1a7 {[%emt 0:00:07]} Rxa8 {[%emt 0:01:41]} 35. Rxa8+ {[%emt 0:00:03]} Kd7 {[%emt 0:00:29]} 36. Ra7+ {[%emt 0:00:23]} Ke8 {[%emt 0:00:27]} 37. Kf2 {[%emt 0:00:54]} f4 {[%emt 0:02:26]} 38. Rb7 {[%emt 0:00:46]} 1/2-1/2

[Event "Mitropa Online Cup Women 2021"]
[Site "Hybrid"]
[Date "2021.05.04"]
[Round "9.4"]
[White "Medic, Mirjana"]
[Black "Sankova, Stella"]
[Result "0-1"]
[ECO "D05"]
[WhiteElo "2147"]
[BlackElo "2087"]
[Annotator "NA"]
[PlyCount "104"]
[EventDate "2021.05.04"]
[EventType "team-tourn"]
[EventCountry "NET"]
[SourceTitle "playchess.com"]
[Source "ChessBase"]
[SourceQuality "1"]
[WhiteTeam "Croatia"]
[BlackTeam "Slovakia"]
[WhiteTeamCountry "CRO"]
[BlackTeamCountry "SVK"]
[TimeControl "40/5400+30:1800+30"]

1. d4 {[%emt 0:00:00]} d5 {[%emt 0:00:15]} 2. Nf3 {[%emt 0:00:31]} e6 {[%emt 0:00:40]} 3. e3 {[%emt 0:01:22]} Nf6 {[%emt 0:00:44]} 4. Bd3 {[%emt 0:00:29]} c5 {[%emt 0:00:17]} 5. b3 {[%emt 0:01:21]} Nc6 {[%emt 0:00:38]} 6. O-O {[%emt 0:01:37]} cxd4 {[%emt 0:03:16]} 7. exd4 {[%emt 0:00:17]} Bd6 {[%emt 0:00:14]} 8. c4 {[%emt 0:12:03]} O-O {[%emt 0:01:40]} 9. Bb2 {[%emt 0:03:20]} b6 {[%emt 0:11:14]} 10. Nbd2 {[%emt 0:03:06]} Bb7 {[%emt 0:05:45]} 11. Rc1 {[%emt 0:00:53]} Rc8 {[%emt 0:02:53]} 12. Ne5 {[%emt 0:03:39]} Nd7 {[%emt 0:07:41]} 13. Ndf3 {[%emt 0:16:54]} Ndxe5 {[%emt 0:04:39]} 14. dxe5 {[%emt 0:03:31]} Bc5 {[%emt 0:00:55]} 15. Qe2 {[%emt 0:03:41]} Nb4 {[%emt 0:03:27]} 16. Bb1 {[%emt 0:01:09]} dxc4 {[%emt 0:02:02]} 17. bxc4 {[%emt 0:04:48]} Be7 {[%emt 0:08:52]} 18. Rfd1 {[%emt 0:01:35]} Qc7 {[%emt 0:00:25]} 19. Nd4 {[%emt 0:02:15]} Rfd8 {[%emt 0:04:00]} 20. a3 {[%emt 0:02:33]} Na6 {[%emt 0:01:12]} 21. Nb5 {[%emt 0:10:33]} Qc6 {[%emt 0:02:23]} 22. f3 {[%emt 0:03:36]} Rxd1+ {[%emt 0:04:29]} 23. Rxd1 {[%emt 0:02:01]} Qxc4 {[%emt 0:00:53]} 24. Bd3 {[%emt 0:02:45]} Qa4 {[%emt 0:03:44]} 25. Nd6 {[%emt 0:01:05]} Bxd6 {[%emt 0:02:10]} 26. exd6 {[%emt 0:00:22]} Nc5 {[%emt 0:01:15]} 27. Bc2 {[%emt 0:03:11]} Qd7 {[%emt 0:03:53]} 28. Qe5 {[%emt 0:01:55]} f6 {[%emt 0:00:20]} 29. Qh5 {[%emt 0:00:09]} g6 {[%emt 0:00:41]} 30. Qg4 {[%emt 0:00:17]} e5 {[%emt 0:04:47]} 31. Bb3+ {[%emt 0:03:52]} Kg7 {[%emt 0:00:08]} 32. Qxd7+ {[%emt 0:00:37]} Nxd7 {[%emt 0:00:03]} 33. Be6 {[%emt 0:00:28]} Rd8 {[%emt 0:00:09]} 34. Kf2 {[%emt 0:03:02]} Nc5 {[%emt 0:01:24]} 35. Bc4 {[%emt 0:00:18]} Bc8 {[%emt 0:01:35]} 36. Ke3 {[%emt 0:01:01]} Nb7 {[%emt 0:05:11]} 37. Ba6 {[%emt 0:00:48]} Nxd6 {[%emt 0:03:29]} 38. Rxd6 {[%emt 0:00:51]} Rxd6 {[%emt 0:00:08]} 39. Bxc8 {[%emt 0:00:09]} Rc6 {[%emt 0:00:19]} 40. Bd7 {[%emt 0:00:00]} Rc2 {[%emt 0:00:00]} 41. Ba1 {[%emt 0:02:22]} Rxg2 {[%emt 0:04:22]} 42. Bc3 {[%emt 0:02:11]} Rxh2 {[%emt 0:02:42]} 43. a4 {[%emt 0:00:30]} g5 {[%emt 0:03:10]} 44. Bb5 {[%emt 0:04:58]} h5 {[%emt 0:01:14]} 45. Bd7 {[%emt 0:02:19]} h4 {[%emt 0:02:37]} 46. Be1 {[%emt 0:01:42]} h3 {[%emt 0:02:14]} 47. f4 {[%emt 0:01:33]} Rh1 {[%emt 0:03:37]} 48. Bf2 {[%emt 0:02:27]} h2 {[%emt 0:01:22]} 49. Bc6 {[%emt 0:01:09]} gxf4+ {[%emt 0:01:16]} 50. Ke2 {[%emt 0:00:52]} Rc1 {[%emt 0:00:20]} 51. Bb7 {[%emt 0:01:13]} h1=Q {[%emt 0:00:29]} 52. Bxh1 {[%emt 0:00:06]} Rxh1 {[%emt 0:00:10]} 0-1

[Event "Mitropa Online Cup Women 2021"]
[Site "Hybrid"]
[Date "2021.05.04"]
[Round "9.4"]
[White "Ferkova, Dominika"]
[Black "Spiranec, Noemi"]
[Result "0-1"]
[ECO "E54"]
[WhiteElo "2006"]
[BlackElo "2098"]
[Annotator "NA"]
[PlyCount "122"]
[EventDate "2021.05.04"]
[EventType "team-tourn"]
[EventCountry "NET"]
[SourceTitle "playchess.com"]
[Source "ChessBase"]
[SourceQuality "1"]
[WhiteTeam "Slovakia"]
[BlackTeam "Croatia"]
[WhiteTeamCountry "SVK"]
[BlackTeamCountry "CRO"]
[TimeControl "40/5400+30:1800+30"]

1. d4 {[%emt 0:00:00]} Nf6 {[%emt 0:00:14]} 2. c4 {[%emt 0:00:08]} e6 {[%emt 0:00:07]} 3. Nc3 {[%emt 0:00:13]} Bb4 {[%emt 0:00:18]} 4. e3 {[%emt 0:00:34]} O-O {[%emt 0:00:09]} 5. Bd3 {[%emt 0:00:23]} c5 {[%emt 0:00:12]} 6. Nf3 {[%emt 0:01:53]} d5 {[%emt 0:00:06]} 7. O-O {[%emt 0:00:06]} dxc4 {[%emt 0:00:15]} 8. Bxc4 {[%emt 0:00:09]} cxd4 {[%emt 0:00:11]} 9. exd4 {[%emt 0:00:07]} b6 {[%emt 0:00:06]} 10. a3 {[%emt 0:02:53]} Bxc3 {[%emt 0:02:16]} 11. bxc3 {[%emt 0:00:06]} Qc7 {[%emt 0:00:05]} 12. Nd2 {[%emt 0:23:55]} Bb7 {[%emt 0:12:12]} 13. Bb2 {[%emt 0:03:35]} Nbd7 {[%emt 0:03:12]} 14. Be2 {[%emt 0:08:13]} e5 {[%emt 0:01:41]} 15. Bf3 {[%emt 0:07:10]} exd4 {[%emt 0:01:36]} 16. cxd4 {[%emt 0:00:08]} Rac8 {[%emt 0:02:37]} 17. Rc1 {[%emt 0:04:08]} Qb8 {[%emt 0:05:44]} 18. Qb3 {[%emt 0:05:28]} Rfd8 {[%emt 0:08:06]} 19. h3 {[%emt 0:13:53]} Nf8 {[%emt 0:03:31]} 20. Rxc8 {[%emt 0:03:58]} Qxc8 {[%emt 0:01:32]} 21. Rc1 {[%emt 0:02:05]} Qd7 {[%emt 0:03:19]} 22. Nc4 {[%emt 0:02:02]} Bd5 {[%emt 0:03:02]} 23. Qd1 {[%emt 0:06:27]} Qf5 {[%emt 0:03:56]} 24. Ne3 {[%emt 0:00:55]} Qd7 {[%emt 0:02:01]} 25. Nxd5 {[%emt 0:00:17]} Nxd5 {[%emt 0:00:04]} 26. Qb3 {[%emt 0:01:29]} Ne6 {[%emt 0:05:05]} 27. a4 {[%emt 0:00:44]} Ndf4 {[%emt 0:04:18]} 28. Rd1 {[%emt 0:04:56]} Ng5 {[%emt 0:03:48]} 29. Bg4 {[%emt 0:01:26]} Qd5 {[%emt 0:04:17]} 30. Qg3 {[%emt 0:00:31]} Nge6 {[%emt 0:03:04]} 31. Bc1 {[%emt 0:01:01]} Ng6 {[%emt 0:02:05]} 32. Bf3 {[%emt 0:00:14]} Qc4 {[%emt 0:01:46]} 33. d5 {[%emt 0:02:35]} Qxa4 {[%emt 0:02:59]} 34. Kh2 {[%emt 0:00:21]} Nc5 {[%emt 0:03:15]} 35. h4 {[%emt 0:01:28]} Qxh4+ {[%emt 0:00:10]} 36. Qxh4 {[%emt 0:00:28]} Nxh4 {[%emt 0:00:04]} 37. Bg4 {[%emt 0:00:24]} Ng6 {[%emt 0:01:28]} 38. Bb2 {[%emt 0:00:47]} Nf4 {[%emt 0:03:13]} 39. Bf3 {[%emt 0:01:24]} Nfd3 {[%emt 0:02:09]} 40. Bd4 {[%emt 0:00:00]} f5 {[%emt 0:00:00]} 41. Be2 {[%emt 0:03:10]} Nf4 {[%emt 0:08:37]} 42. Bc4 {[%emt 0:00:24]} Ne4 {[%emt 0:01:51]} 43. d6+ {[%emt 0:16:50]} Kf8 {[%emt 0:00:11]} 44. f3 {[%emt 0:01:20]} Nxd6 {[%emt 0:02:15]} 45. Be5 {[%emt 0:00:45]} Nxc4 {[%emt 0:01:59]} 46. Rxd8+ {[%emt 0:00:07]} Ke7 {[%emt 0:00:04]} 47. Rd4 {[%emt 0:00:07]} Nxe5 {[%emt 0:00:05]} 48. Rxf4 {[%emt 0:00:06]} Ke6 {[%emt 0:00:05]} 49. Rb4 {[%emt 0:00:35]} Kd6 {[%emt 0:01:04]} 50. Kg3 {[%emt 0:00:30]} Kc5 {[%emt 0:01:42]} 51. Rb1 {[%emt 0:00:07]} a5 {[%emt 0:01:56]} 52. Kf4 {[%emt 0:00:54]} Nc4 {[%emt 0:00:04]} 53. Rh1 {[%emt 0:01:19]} a4 {[%emt 0:00:26]} 54. Rxh7 {[%emt 0:00:37]} g6 {[%emt 0:01:27]} 55. Kg5 {[%emt 0:00:32]} b5 {[%emt 0:02:02]} 56. Kxg6 {[%emt 0:00:31]} b4 {[%emt 0:00:15]} 57. Kf6 {[%emt 0:00:35]} b3 {[%emt 0:00:50]} 58. g4 {[%emt 0:00:23]} fxg4 {[%emt 0:00:05]} 59. fxg4 {[%emt 0:00:05]} b2 {[%emt 0:00:09]} 60. Rh1 {[%emt 0:00:10]} a3 {[%emt 0:00:13]} 61. g5 {[%emt 0:00:22]} a2 {[%emt 0:00:03]} 0-1

[Event "Mitropa Online Cup Women 2021"]
[Site "Hybrid"]
[Date "2021.05.04"]
[Round "9.4"]
[White "Radikovic, Anamarija"]
[Black "Taragelova, Martina"]
[Result "1-0"]
[ECO "C30"]
[WhiteElo "2006"]
[BlackElo "2010"]
[Annotator "NA"]
[PlyCount "75"]
[EventDate "2021.05.04"]
[EventType "team-tourn"]
[EventCountry "NET"]
[SourceTitle "playchess.com"]
[Source "ChessBase"]
[SourceQuality "1"]
[WhiteTeam "Croatia"]
[BlackTeam "Slovakia"]
[WhiteTeamCountry "CRO"]
[BlackTeamCountry "SVK"]
[TimeControl "40/5400+30:1800+30"]

1. e4 {[%emt 0:00:00]} e5 {[%emt 0:00:21]} 2. Nc3 {[%emt 0:00:05]} Nc6 {[%emt 0:00:49]} 3. Bc4 {[%emt 0:00:04]} Nf6 {[%emt 0:01:02]} 4. d3 {[%emt 0:00:05]} Bc5 {[%emt 0:01:12]} 5. f4 {[%emt 0:00:07]} d6 {[%emt 0:03:26]} 6. Nf3 {[%emt 0:02:01]} Bg4 {[%emt 0:09:20]} 7. Na4 {[%emt 0:03:19]} Nd7 {[%emt 0:09:16]} 8. Nxc5 {[%emt 0:04:10]} Bxf3 {[%emt 0:02:54]} 9. Qxf3 {[%emt 0:00:32]} Nxc5 {[%emt 0:01:11]} 10. O-O {[%emt 0:02:43]} Qe7 {[%emt 0:02:28]} 11. Qg4 {[%emt 0:04:33]} O-O {[%emt 0:05:10]} 12. f5 {[%emt 0:00:39]} Kh8 {[%emt 0:01:18]} 13. Rf3 {[%emt 0:05:17]} Nd7 {[%emt 0:23:48]} 14. Bg5 {[%emt 0:07:53]} f6 {[%emt 0:03:01]} 15. Rh3 {[%emt 0:00:10]} Rf7 {[%emt 0:05:15]} 16. Qh5 {[%emt 0:19:47]} g6 {[%emt 0:08:50]} 17. fxg6 {[%emt 0:00:04]} Rg7 {[%emt 0:00:23]} 18. Bf7 {[%emt 0:00:08]} Nf8 {[%emt 0:02:41]} 19. Bh4 {[%emt 0:05:49]} Nxg6 {[%emt 0:03:10]} 20. Bxg6 {[%emt 0:00:18]} Rxg6 {[%emt 0:01:52]} 21. Qxg6 {[%emt 0:00:11]} hxg6 {[%emt 0:00:30]} 22. Bxf6+ {[%emt 0:00:03]} Kg8 {[%emt 0:00:27]} 23. Bxe7 {[%emt 0:00:04]} Nxe7 {[%emt 0:00:16]} 24. Rf1 {[%emt 0:00:04]} Nc6 {[%emt 0:08:34]} 25. c3 {[%emt 0:00:11]} Re8 {[%emt 0:00:25]} 26. Rf6 {[%emt 0:01:41]} Kg7 {[%emt 0:00:17]} 27. Rhf3 {[%emt 0:00:04]} Re7 {[%emt 0:00:13]} 28. Rf8 {[%emt 0:00:58]} a6 {[%emt 0:00:28]} 29. h4 {[%emt 0:00:33]} Rd7 {[%emt 0:00:49]} 30. Re8 {[%emt 0:01:09]} Ne7 {[%emt 0:01:09]} 31. Rff8 {[%emt 0:00:13]} c6 {[%emt 0:00:46]} 32. g4 {[%emt 0:02:16]} d5 {[%emt 0:01:30]} 33. Rd8 {[%emt 0:00:05]} Rc7 {[%emt 0:00:50]} 34. g5 {[%emt 0:00:03]} a5 {[%emt 0:01:09]} 35. Rf6 {[%emt 0:00:05]} dxe4 {[%emt 0:01:03]} 36. dxe4 {[%emt 0:00:04]} c5 {[%emt 0:00:21]} 37. Rfd6 {[%emt 0:00:19]} Kf7 {[%emt 0:01:29]} 38. R8d7 {[%emt 0:00:22]} 1-0

[Event "Mitropa Online Cup Women 2021"]
[Site "Hybrid"]
[Date "2021.05.04"]
[Round "9.5"]
[White "Worek, Joanna"]
[Black "Hund, Sarah"]
[Result "1-0"]
[ECO "C77"]
[WhiteElo "2322"]
[BlackElo "2049"]
[Annotator "NA"]
[PlyCount "119"]
[EventDate "2021.05.04"]
[EventType "team-tourn"]
[EventCountry "NET"]
[SourceTitle "playchess.com"]
[Source "ChessBase"]
[SourceQuality "1"]
[WhiteTeam "Czech Republic"]
[BlackTeam "Switzerland"]
[WhiteTeamCountry "CZE"]
[BlackTeamCountry "SUI"]
[TimeControl "40/5400+30:1800+30"]

1. e4 {[%emt 0:00:00]} e5 {[%emt 0:00:10]} 2. Nf3 {[%emt 0:00:05]} Nc6 {[%emt 0:00:10]} 3. Bb5 {[%emt 0:00:07]} a6 {[%emt 0:00:14]} 4. Ba4 {[%emt 0:00:06]} Nf6 {[%emt 0:00:21]} 5. d3 {[%emt 0:00:30]} d6 {[%emt 0:01:00]} 6. c3 {[%emt 0:00:07]} g6 {[%emt 0:01:24]} 7. O-O {[%emt 0:01:09]} Bg7 {[%emt 0:00:58]} 8. Re1 {[%emt 0:01:10]} O-O {[%emt 0:01:23]} 9. Nbd2 {[%emt 0:00:25]} b5 {[%emt 0:02:21]} 10. Bc2 {[%emt 0:00:38]} Nb8 {[%emt 0:01:53]} 11. d4 {[%emt 0:01:05]} Nbd7 {[%emt 0:01:27]} 12. Nf1 {[%emt 0:02:40]} Bb7 {[%emt 0:02:06]} 13. b3 {[%emt 0:00:55]} Re8 {[%emt 0:05:25]} 14. Ng3 {[%emt 0:02:58]} d5 {[%emt 0:07:03]} 15. dxe5 {[%emt 0:08:56]} Nxe4 {[%emt 0:04:06]} 16. Nxe4 {[%emt 0:05:20]} dxe4 {[%emt 0:00:24]} 17. Bg5 {[%emt 0:00:12]} Qc8 {[%emt 0:01:58]} 18. Bxe4 {[%emt 0:10:03]} Bxe4 {[%emt 0:06:53]} 19. Rxe4 {[%emt 0:00:11]} Nxe5 {[%emt 0:00:33]} 20. Nxe5 {[%emt 0:00:58]} Rxe5 {[%emt 0:03:03]} 21. Rxe5 {[%emt 0:03:48]} Bxe5 {[%emt 0:00:32]} 22. Qf3 {[%emt 0:05:55]} Rb8 {[%emt 0:07:28]} 23. Re1 {[%emt 0:02:15]} Qe6 {[%emt 0:05:25]} 24. g3 {[%emt 0:02:56]} Qd6 {[%emt 0:05:20]} 25. h4 {[%emt 0:03:24]} Qc5 {[%emt 0:05:51]} 26. Re3 {[%emt 0:03:00]} Kg7 {[%emt 0:04:40]} 27. Rd3 {[%emt 0:02:21]} Rf8 {[%emt 0:02:28]} 28. h5 {[%emt 0:02:46]} h6 {[%emt 0:02:49]} 29. Be3 {[%emt 0:02:18]} Qe7 {[%emt 0:00:30]} 30. Qd5 {[%emt 0:06:14]} Qd6 {[%emt 0:06:43]} 31. Bc5 {[%emt 0:00:47]} Qxd5 {[%emt 0:03:06]} 32. Bxf8+ {[%emt 0:00:04]} Kxf8 {[%emt 0:00:07]} 33. Rxd5 {[%emt 0:00:07]} Bxc3 {[%emt 0:00:22]} 34. hxg6 {[%emt 0:00:06]} fxg6 {[%emt 0:00:16]} 35. Rc5 {[%emt 0:00:05]} Ba5 {[%emt 0:04:38]} 36. Rc6 {[%emt 0:00:05]} Kf7 {[%emt 0:01:19]} 37. Rxa6 {[%emt 0:00:02]} Bb4 {[%emt 0:01:06]} 38. Rc6 {[%emt 0:04:14]} Bd6 {[%emt 0:01:14]} 39. a4 {[%emt 0:00:07]} bxa4 {[%emt 0:00:52]} 40. bxa4 {[%emt 0:00:00]} Ke7 {[%emt 0:00:00]} 41. f4 {[%emt 0:00:45]} Kd7 {[%emt 0:04:05]} 42. Rc4 {[%emt 0:01:44]} g5 {[%emt 0:08:16]} 43. fxg5 {[%emt 0:00:11]} hxg5 {[%emt 0:00:07]} 44. Kf2 {[%emt 0:00:09]} Ke6 {[%emt 0:03:52]} 45. Kf3 {[%emt 0:00:31]} Kd5 {[%emt 0:01:06]} 46. Rc1 {[%emt 0:00:30]} Ke6 {[%emt 0:07:33]} 47. a5 {[%emt 0:00:45]} Kd7 {[%emt 0:00:25]} 48. a6 {[%emt 0:00:10]} Kc8 {[%emt 0:00:18]} 49. Rb1 {[%emt 0:00:17]} Bc5 {[%emt 0:00:20]} 50. Kg4 {[%emt 0:00:35]} Be3 {[%emt 0:04:41]} 51. Rb3 {[%emt 0:00:10]} Bb6 {[%emt 0:00:10]} 52. Kxg5 {[%emt 0:00:06]} Kb8 {[%emt 0:00:09]} 53. Kf5 {[%emt 0:00:10]} Ka7 {[%emt 0:00:14]} 54. Ra3 {[%emt 0:00:02]} c5 {[%emt 0:00:39]} 55. g4 {[%emt 0:00:21]} c4 {[%emt 0:00:09]} 56. Ke4 {[%emt 0:00:17]} Bc5 {[%emt 0:00:25]} 57. Ra4 {[%emt 0:00:06]} Bb6 {[%emt 0:00:27]} 58. g5 {[%emt 0:00:05]} Bd8 {[%emt 0:00:11]} 59. g6 {[%emt 0:00:02]} Bf6 {[%emt 0:00:04]} 60. Rxc4 {[%emt 0:00:02]} 1-0

[Event "Mitropa Online Cup Women 2021"]
[Site "Hybrid"]
[Date "2021.05.04"]
[Round "9.5"]
[White "Olsarova, Karolina"]
[Black "Hakimifard, Ghazal"]
[Result "0-1"]
[ECO "B84"]
[WhiteElo "2290"]
[BlackElo "2265"]
[Annotator "NA"]
[PlyCount "72"]
[EventDate "2021.05.04"]
[EventType "team-tourn"]
[EventCountry "NET"]
[SourceTitle "playchess.com"]
[Source "ChessBase"]
[SourceQuality "1"]
[WhiteTeam "Czech Republic"]
[BlackTeam "Switzerland"]
[WhiteTeamCountry "CZE"]
[BlackTeamCountry "SUI"]
[TimeControl "40/5400+30:1800+30"]

1. e4 {[%emt 0:00:00]} c5 {[%emt 0:00:07]} 2. Nf3 {[%emt 0:00:06]} e6 {[%emt 0:00:07]} 3. d4 {[%emt 0:00:08]} cxd4 {[%emt 0:00:04]} 4. Nxd4 {[%emt 0:00:06]} a6 {[%emt 0:00:05]} 5. Nc3 {[%emt 0:00:13]} Qc7 {[%emt 0:00:05]} 6. Be2 {[%emt 0:00:24]} Nf6 {[%emt 0:00:14]} 7. O-O {[%emt 0:00:26]} Be7 {[%emt 0:01:22]} 8. f4 {[%emt 0:02:58]} d6 {[%emt 0:00:08]} 9. Be3 {[%emt 0:02:48]} Nbd7 {[%emt 0:00:50]} 10. Bf3 {[%emt 0:04:26]} O-O {[%emt 0:00:18]} 11. Qe1 {[%emt 0:00:55]} Re8 {[%emt 0:06:49]} 12. Kh1 {[%emt 0:06:11]} Bf8 {[%emt 0:03:12]} 13. Qh4 {[%emt 0:02:36]} Nc5 {[%emt 0:09:36]} 14. Rae1 {[%emt 0:04:07]} e5 {[%emt 0:01:39]} 15. Nf5 {[%emt 0:08:08]} Bxf5 {[%emt 0:02:53]} 16. exf5 {[%emt 0:02:56]} e4 {[%emt 0:00:05]} 17. Be2 {[%emt 0:03:12]} b5 {[%emt 0:01:42]} 18. g4 {[%emt 0:11:29]} Qc6 {[%emt 0:04:23]} 19. Rd1 {[%emt 0:08:22]} Na4 {[%emt 0:03:36]} 20. Nxa4 {[%emt 0:02:54]} bxa4 {[%emt 0:00:18]} 21. c4 {[%emt 0:00:09]} Rab8 {[%emt 0:01:28]} 22. g5 {[%emt 0:04:00]} Rxb2 {[%emt 0:09:55]} 23. gxf6 {[%emt 0:01:07]} Rxe2 {[%emt 0:00:05]} 24. Rg1 {[%emt 0:03:48]} d5 {[%emt 0:11:58]} 25. cxd5 {[%emt 0:12:02]} Qc3 {[%emt 0:00:15]} 26. Rxg7+ {[%emt 0:14:55]} Bxg7 {[%emt 0:00:06]} 27. Rg1 {[%emt 0:00:46]} Kh8 {[%emt 0:04:49]} 28. Qg4 {[%emt 0:02:04]} Qxf6 {[%emt 0:00:25]} 29. Qxe2 {[%emt 0:00:21]} Qxf5 {[%emt 0:00:15]} 30. Rd1 {[%emt 0:01:13]} Rd8 {[%emt 0:11:01]} 31. d6 {[%emt 0:00:19]} Qe6 {[%emt 0:01:08]} 32. Qxa6 {[%emt 0:01:03]} Qxa2 {[%emt 0:09:02]} 33. Qb6 {[%emt 0:00:22]} Rg8 {[%emt 0:00:05]} 34. d7 {[%emt 0:01:50]} Qe2 {[%emt 0:00:04]} 35. Rg1 {[%emt 0:00:23]} Qf3+ {[%emt 0:00:40]} 36. Rg2 {[%emt 0:00:03]} Be5 {[%emt 0:00:14]} 0-1

[Event "Mitropa Online Cup Women 2021"]
[Site "Hybrid"]
[Date "2021.05.04"]
[Round "9.5"]
[White "Mueller-Seps, Monika"]
[Black "Petrova, Kristyna"]
[Result "1/2-1/2"]
[ECO "A46"]
[WhiteElo "2243"]
[BlackElo "2303"]
[Annotator "NA"]
[PlyCount "60"]
[EventDate "2021.05.04"]
[EventType "team-tourn"]
[EventCountry "NET"]
[SourceTitle "playchess.com"]
[Source "ChessBase"]
[SourceQuality "1"]
[WhiteTeam "Switzerland"]
[BlackTeam "Czech Republic"]
[WhiteTeamCountry "SUI"]
[BlackTeamCountry "CZE"]
[TimeControl "40/5400+30:1800+30"]

1. d4 {[%emt 0:00:00]} Nf6 {[%emt 0:00:07]} 2. Bg5 {[%emt 0:00:06]} e6 {[%emt 0:00:11]} 3. Nf3 {[%emt 0:00:09]} h6 {[%emt 0:00:08]} 4. Bh4 {[%emt 0:00:12]} d6 {[%emt 0:00:06]} 5. e3 {[%emt 0:10:41]} g5 {[%emt 0:00:12]} 6. Bg3 {[%emt 0:00:05]} Nh5 {[%emt 0:00:12]} 7. Be2 {[%emt 0:11:50]} Bg7 {[%emt 0:04:56]} 8. c3 {[%emt 0:02:05]} Qe7 {[%emt 0:04:16]} 9. Nfd2 {[%emt 0:04:28]} Nxg3 {[%emt 0:00:09]} 10. hxg3 {[%emt 0:00:05]} Nd7 {[%emt 0:02:02]} 11. Na3 {[%emt 0:19:22]} a6 {[%emt 0:01:28]} 12. Nc2 {[%emt 0:04:12]} Nf6 {[%emt 0:22:34]} 13. e4 {[%emt 0:02:38]} Bd7 {[%emt 0:03:04]} 14. Ne3 {[%emt 0:02:40]} Bc6 {[%emt 0:01:43]} 15. Qc2 {[%emt 0:01:06]} h5 {[%emt 0:08:40]} 16. O-O-O {[%emt 0:11:44]} O-O-O {[%emt 0:04:13]} 17. Kb1 {[%emt 0:01:44]} Kb8 {[%emt 0:05:25]} 18. Nec4 {[%emt 0:14:43]} Nxe4 {[%emt 0:18:19]} 19. Nxe4 {[%emt 0:00:18]} Bxe4 {[%emt 0:00:06]} 20. Qxe4 {[%emt 0:00:03]} d5 {[%emt 0:00:06]} 21. Qc2 {[%emt 0:04:34]} dxc4 {[%emt 0:00:23]} 22. Bxc4 {[%emt 0:00:39]} h4 {[%emt 0:04:25]} 23. gxh4 {[%emt 0:02:01]} Rxh4 {[%emt 0:00:54]} 24. Rxh4 {[%emt 0:01:05]} gxh4 {[%emt 0:00:05]} 25. Be2 {[%emt 0:01:08]} e5 {[%emt 0:05:45]} 26. dxe5 {[%emt 0:00:23]} Rxd1+ {[%emt 0:00:19]} 27. Qxd1 {[%emt 0:00:23]} Qxe5 {[%emt 0:00:12]} 28. Bf3 {[%emt 0:00:15]} Ka7 {[%emt 0:04:48]} 29. a3 {[%emt 0:00:35]} Bf8 {[%emt 0:03:00]} 30. Qe2 {[%emt 0:03:21]} Bd6 {[%emt 0:03:35]} 1/2-1/2

[Event "Mitropa Online Cup Women 2021"]
[Site "Hybrid"]
[Date "2021.05.04"]
[Round "9.5"]
[White "Tamrazyan, Gohar"]
[Black "Kanakova, Natalie"]
[Result "0-1"]
[ECO "B43"]
[WhiteElo "1842"]
[BlackElo "2179"]
[Annotator "NA"]
[PlyCount "58"]
[EventDate "2021.05.04"]
[EventType "team-tourn"]
[EventCountry "NET"]
[SourceTitle "playchess.com"]
[Source "ChessBase"]
[SourceQuality "1"]
[WhiteTeam "Switzerland"]
[BlackTeam "Czech Republic"]
[WhiteTeamCountry "SUI"]
[BlackTeamCountry "CZE"]
[TimeControl "40/5400+30:1800+30"]

1. e4 {[%emt 0:00:00]} c5 {[%emt 0:00:07]} 2. Nc3 {[%emt 0:00:06]} e6 {[%emt 0:00:22]} 3. Nf3 {[%emt 0:00:36]} a6 {[%emt 0:00:28]} 4. d4 {[%emt 0:01:08]} cxd4 {[%emt 0:00:12]} 5. Nxd4 {[%emt 0:01:56]} Qc7 {[%emt 0:00:15]} 6. Bd3 {[%emt 0:05:39]} Nf6 {[%emt 0:01:05]} 7. O-O {[%emt 0:00:49]} Bc5 {[%emt 0:01:31]} 8. Nb3 {[%emt 0:07:29]} Be7 {[%emt 0:00:22]} 9. f4 {[%emt 0:01:53]} d6 {[%emt 0:00:28]} 10. Qf3 {[%emt 0:06:01]} Nbd7 {[%emt 0:09:13]} 11. g4 {[%emt 0:04:21]} Nc5 {[%emt 0:04:27]} 12. Nxc5 {[%emt 0:05:49]} dxc5 {[%emt 0:03:25]} 13. f5 {[%emt 0:08:09]} h6 {[%emt 0:16:59]} 14. Be3 {[%emt 0:22:49]} Bd6 {[%emt 0:05:42]} 15. h4 {[%emt 0:02:00]} h5 {[%emt 0:06:01]} 16. g5 {[%emt 0:00:19]} Ng4 {[%emt 0:00:32]} 17. Bf4 {[%emt 0:01:14]} c4 {[%emt 0:08:59]} 18. Be2 {[%emt 0:00:21]} exf5 {[%emt 0:07:38]} 19. exf5 {[%emt 0:03:12]} Bxf5 {[%emt 0:06:04]} 20. Nd5 {[%emt 0:05:00]} Qc5+ {[%emt 0:01:27]} 21. Be3 {[%emt 0:00:38]} Nxe3 {[%emt 0:03:45]} 22. Qxe3+ {[%emt 0:00:12]} Be6 {[%emt 0:03:44]} 23. Rad1 {[%emt 0:05:17]} O-O-O {[%emt 0:02:27]} 24. Nb6+ {[%emt 0:08:45]} Kb8 {[%emt 0:01:07]} 25. Qf2 {[%emt 0:03:10]} Qxf2+ {[%emt 0:01:10]} 26. Rxf2 {[%emt 0:00:05]} Bc5 {[%emt 0:00:08]} 27. Rxd8+ {[%emt 0:00:33]} Rxd8 {[%emt 0:00:08]} 28. Nxc4 {[%emt 0:00:13]} Bxc4 {[%emt 0:00:20]} 29. Bxc4 {[%emt 0:00:18]} Rd2 {[%emt 0:00:10]} 0-1